[Event "FIDE WSTC Open 50 2025"]
[Site "Prague"]
[Date "2025.02.23"]
[Round "6.15"]
[White "Jaderberg, Bjorn"]
[Black "Nordenbaek, Jan"]
[Result "1/2-1/2"]
[Annotator "RC"]
[ECO "A22"]
[WhiteElo "2134"]
[BlackElo "2192"]
[PlyCount "126"]
[EventDate "2025.02.17"]
[EventType "team-tourn"]
[EventCountry "CZE"]
[SourceTitle "playchess.com"]
[Source "ChessBase"]
[SourceQuality "1"]
[TimeControl "40/5400+30:1800+30"]

1. c4 {[%emt 0:00:02]} e5 {[%emt 0:00:57]} 2. Nc3 {[%emt 0:00:13]} Nf6 {[%emt 0:00:21]} 3. g3 {[%emt 0:00:22]} c6 {[%emt 0:00:49]} 4. Nf3 {[%emt 0:00:50]} e4 {[%emt 0:01:55]} 5. Nd4 {[%emt 0:00:19]} d5 {[%emt 0:04:42]} 6. d3 {[%emt 0:05:19]} exd3 {[%emt 0:12:14]} 7. cxd5 {[%emt 0:06:36]} Nxd5 {[%emt 0:01:57]} 8. Qxd3 {[%emt 0:08:08]} Be7 {[%emt 0:05:38]} 9. Nc2 {[%emt 0:10:29]} Nxc3 {[%emt 0:02:04]} 10. bxc3 {[%emt 0:08:47]} O-O {[%emt 0:02:23]} 11. Ba3 {[%emt 0:06:20]} Bxa3 {[%emt 0:04:01]} 12. Qxd8 {[%emt 0:04:59]} Rxd8 {[%emt 0:00:10]} 13. Nxa3 {[%emt 0:00:06]} Na6 {[%emt 0:00:43]} 14. Bg2 {[%emt 0:04:53]} Be6 {[%emt 0:00:56]} 15. Be4 {[%emt 0:02:11]} Nc5 {[%emt 0:04:14]} 16. Bc2 {[%emt 0:00:26]} g6 {[%emt 0:01:23]} 17. Nb1 {[%emt 0:03:23]} a5 {[%emt 0:05:00]} 18. Nd2 {[%emt 0:01:20]} a4 {[%emt 0:01:10]} 19. a3 {[%emt 0:03:29]} Re8 {[%emt 0:13:43]} 20. f3 {[%emt 0:04:53]} Bb3 {[%emt 0:03:25]} 21. Rc1 {[%emt 0:03:57]} Rad8 {[%emt 0:05:24]} 22. Ne4 {[%emt 0:02:18]} Nxe4 {[%emt 0:03:46]} 23. Bxe4 {[%emt 0:00:32]} f5 {[%emt 0:00:34]} 24. Bb1 {[%emt 0:00:52]} Re5 {[%emt 0:03:09]} 25. Kf2 {[%emt 0:01:44]} Rd2 {[%emt 0:00:22]} 26. Rhe1 {[%emt 0:00:13]} Kf8 {[%emt 0:02:50]} 27. Bd3 {[%emt 0:02:46]} Ke7 {[%emt 0:02:12]} 28. f4 {[%emt 0:03:11]} Rc5 {[%emt 0:00:49]} 29. Ke3 {[%emt 0:01:11]} Rb2 {[%emt 0:03:20]} 30. Rb1 {[%emt 0:01:31]} Ra2 {[%emt 0:01:08]} 31. Ra1 {[%emt 0:00:17]} b5 {[%emt 0:03:47]} 32. Rxa2 {[%emt 0:00:36]} Bxa2 {[%emt 0:00:02]} 33. Kd2 {[%emt 0:00:59]} Rd5 {[%emt 0:00:48]} 34. Ke3 {[%emt 0:00:42]} Kd6 {[%emt 0:01:43]} 35. h3 {[%emt 0:00:39]} Rc5 {[%emt 0:03:41]} 36. Kd4 {[%emt 0:00:24]} Be6 {[%emt 0:01:05]} 37. Rg1 {[%emt 0:00:42]} h5 {[%emt 0:00:44]} 38. h4 {[%emt 0:00:58]} Bd5 {[%emt 0:02:16]} 39. Rd1 {[%emt 0:01:32]} Bb3 {[%emt 0:00:27]} 40. Re1 {[%emt 0:00:23]} Rd5+ {[%emt 0:01:23]} 41. Ke3 {[%emt 0:30:14]} Kc5 {[%emt 0:31:29]} 42. Rb1 {[%emt 0:03:35]} Rd8 {[%emt 0:00:49]} 43. Rc1 {[%emt 0:01:54]} Bf7 {[%emt 0:00:00]} 44. Rb1 {[%emt 0:00:00]} Bb3 {[%emt 0:00:00]} 45. Rc1 {[%emt 0:00:00]} Re8+ {[%emt 0:00:00]} 46. Kd2 {[%emt 0:00:00]} Rd8 {[%emt 0:00:00]} 47. Ke3 {[%emt 0:00:00]} Rb8 {[%emt 0:00:00]} 48. Re1 {[%emt 0:00:00]} Re8+ {[%emt 0:00:00]} 49. Kd2 {[%emt 0:00:00]} Bd5 {[%emt 0:00:00]} 50. Rb1 {[%emt 0:00:00]} Bb3 {[%emt 0:00:00]} 51. Re1 {[%emt 0:00:00]} Rd8 {[%emt 0:00:00]} 52. Ke3 {[%emt 0:00:00]} Kb6 {[%emt 0:00:00]} 53. Kd2 {[%emt 0:00:00]} c5 {[%emt 0:00:00]} 54. Kc1 {[%emt 0:00:00]} Bf7 {[%emt 0:00:00]} 55. Kb2 {[%emt 0:00:00]} Bb3 {[%emt 0:01:55]} 56. Bb1 {[%emt 0:00:00]} Bc4 {[%emt 0:01:53]} 57. e4 {[%emt 0:00:00]} fxe4 {[%emt 0:00:08]} 58. Rxe4 {[%emt 0:00:00]} Rd2+ {[%emt 0:00:14]} 59. Kc1 {[%emt 0:00:00]} Rg2 {[%emt 0:00:33]} 60. Re3 {[%emt 0:00:00]} Rg1+ {[%emt 0:01:46]} 61. Kb2 {[%emt 0:00:00]} Rg2+ {[%emt 0:00:04]} 62. Kc1 {[%emt 0:00:00]} Rg1+ {[%emt 0:01:26]} 63. Kb2 {[%emt 0:00:00]} Rg2+ 1/2-1/2

[Event "FIDE WSTC Open 50 2025"]
[Site "Prague"]
[Date "2025.02.23"]
[Round "6.16"]
[White "Nielsen, Niels-Peter"]
[Black "Wengholm, Anders"]
[Result "1/2-1/2"]
[Annotator "RC"]
[ECO "B48"]
[WhiteElo "2086"]
[BlackElo "2132"]
[PlyCount "60"]
[EventDate "2025.02.17"]
[EventType "team-tourn"]
[EventCountry "CZE"]
[SourceTitle "playchess.com"]
[Source "ChessBase"]
[SourceQuality "1"]
[TimeControl "40/5400+30:1800+30"]

1. e4 {[%emt 0:00:03]} c5 {[%emt 0:00:13]} 2. Nf3 {[%emt 0:00:07]} e6 {[%emt 0:00:14]} 3. Nc3 {[%emt 0:01:22]} Nc6 {[%emt 0:01:35]} 4. d4 {[%emt 0:00:48]} cxd4 {[%emt 0:00:07]} 5. Nxd4 {[%emt 0:00:07]} Qc7 {[%emt 0:01:20]} 6. Be3 {[%emt 0:01:24]} a6 {[%emt 0:00:29]} 7. Bd3 {[%emt 0:01:24]} b5 {[%emt 0:02:35]} 8. Nxc6 {[%emt 0:00:47]} Qxc6 {[%emt 0:00:34]} 9. a3 {[%emt 0:01:10]} Bb7 {[%emt 0:00:14]} 10. Qe2 {[%emt 0:09:43]} Nf6 {[%emt 0:06:53]} 11. O-O {[%emt 0:03:13]} Be7 {[%emt 0:02:05]} 12. f3 {[%emt 0:04:23]} Qc7 {[%emt 0:05:56]} 13. Rad1 {[%emt 0:07:11]} O-O {[%emt 0:00:38]} 14. Kh1 {[%emt 0:02:00]} d5 {[%emt 0:09:34]} 15. exd5 {[%emt 0:02:23]} Nxd5 {[%emt 0:00:08]} 16. Nxd5 {[%emt 0:01:47]} Bxd5 {[%emt 0:00:21]} 17. Qf2 {[%emt 0:01:51]} Bf6 {[%emt 0:14:17]} 18. Bd4 {[%emt 0:02:42]} Bxd4 {[%emt 0:00:48]} 19. Qxd4 {[%emt 0:00:03]} h6 {[%emt 0:15:02]} 20. Rfe1 {[%emt 0:09:34]} Rac8 {[%emt 0:06:10]} 21. a4 {[%emt 0:09:49]} Rfd8 {[%emt 0:04:14]} 22. Qb4 {[%emt 0:02:28]} a5 {[%emt 0:01:47]} 23. Qh4 {[%emt 0:01:54]} b4 {[%emt 0:00:16]} 24. b3 Qc3 {[%emt 0:02:33]} 25. Be4 {[%emt 0:10:25]} Qf6 {[%emt 0:20:16]} 26. Qxf6 {[%emt 0:00:46]} gxf6 {[%emt 0:00:02]} 27. Bxd5 {[%emt 0:00:21]} exd5 {[%emt 0:00:45]} 28. Re2 {[%emt 0:01:44]} Kf8 {[%emt 0:01:05]} 29. Kg1 {[%emt 0:01:44]} Rc5 {[%emt 0:00:14]} 30. Kf2 {[%emt 0:08:07]} Rdc8 {[%emt 0:00:53]} 1/2-1/2

[Event "FIDE WSTC Open 50 2025"]
[Site "Prague"]
[Date "2025.02.23"]
[Round "6.17"]
[White "Bryson, Douglas M"]
[Black "Van der Werf, Mark"]
[Result "1-0"]
[Annotator "TA"]
[ECO "C24"]
[WhiteElo "2295"]
[BlackElo "2416"]
[PlyCount "93"]
[EventDate "2025.02.17"]
[EventType "team-tourn"]
[EventCountry "CZE"]
[SourceTitle "playchess.com"]
[Source "ChessBase"]
[SourceQuality "1"]
[TimeControl "40/5400+30:1800+30"]

{[%evp 9,93,-8,0,0,0,0,-8,0,0,0,0,0,0,-2,0,-12,-11,-61,-56,-76,-31,-47,-29,-45,-63,-64,-67,-65,-54,-43,0,0,0,0,0,0,0,0,0,0,19,0,0,0,40,12,28,26,29,25,53,0,0,0,0,-15,0,0,0,-154,0,0,-6,-81,-79,-514,-285,-423,-389,-325,0,0,0,8,45,43,653,635,29974,29975,29996,29997,29997,29989,29992,936]} 1. e4 {[%emt 0:00:28]} e5 {[%emt 0:00:05]} 2. Bc4 {[%emt 0:00:33]} Nf6 {[%emt 0:00:09]} 3. d3 {[%emt 0:00:33]} Bc5 {[%emt 0:00:07]} 4. Nc3 {[%emt 0:00:39]} O-O {[%emt 0:00:13]} 5. f4 {[%emt 0:01:45] [#]} d5 $1 {[%emt 0:00:09]} 6. Nxd5 {[%emt 0:01:07] C27: Vienna Game: 2...Nf6 3 Bc4 Nxe4.} Be6 {[%emt 0:01:09]} 7. Nxf6+ {[%emt 0:01:31]} (7. fxe5 Nxe4 8. Qf3 Nf2 $17 (8... Bxd5 9. Bxd5 Qxd5 10. Qxe4 $11)) 7... Qxf6 {[%emt 0:00:12]} 8. Bxe6 {[%emt 0:00:48] The position is equal.} fxe6 {[%emt 0:00:06]} 9. Nf3 {[%emt 0:00:47]} exf4 {[%emt 0:00:07]} 10. d4 {[%emt 0:00:41]} Bb6 {[%emt 0:00:08]} 11. a4 {[%emt 0:03:05]} Nc6 $146 {[%emt 0:00:52]} ({Predecessor:} 11... c5 12. d5 c4 13. a5 Bc5 14. Ra4 Nd7 15. Rxc4 Rac8 16. Qd3 b5 17. axb6 Nxb6 {1-0 Alinasab,M (2340)-Petrov,N (2562) Ponte de Lima op 2024 (2)}) 12. c3 {[%emt 0:01:07]} a5 {[%emt 0:00:27]} 13. Qd3 {[%emt 0:14:37]} ({White should play} 13. e5 $11 Qf5 14. Bd2) 13... e5 $15 {[%emt 0:19:04]} 14. d5 {[%emt 0:04:05]} Nd8 {[%emt 0:06:17]} 15. b3 {[%emt 0:04:16]} Nf7 {[%emt 0:04:31]} 16. Ra2 {[%emt 0:10:37]} c6 {[%emt 0:03:35]} 17. c4 {[%emt 0:10:01]} cxd5 {[%emt 0:09:49]} 18. cxd5 {[%emt 0:00:14]} Rac8 {[%emt 0:00:34] White is weak on the dark squares} 19. Kd1 {[%emt 0:02:04]} Rc7 {[%emt 0:08:26]} 20. Rc2 {[%emt 0:03:10]} Rfc8 {[%emt 0:06:56]} 21. Rxc7 {[%emt 0:00:52]} Rxc7 {[%emt 0:00:53]} 22. Re1 {[%emt 0:03:37]} g5 {[%emt 0:05:23]} 23. h3 {[%emt 0:04:55]} h5 {[%emt 0:00:27]} 24. Nd2 {[%emt 0:11:14]} Nd6 {[%emt 0:03:50]} 25. Qe2 {[%emt 0:04:22]} Qg6 {[%emt 0:08:40]} 26. Bb2 {[%emt 0:00:23] Wards off Rc3} Re7 {[%emt 0:01:56]} 27. Ba3 {[%emt 0:00:30]} Be3 {[%emt 0:02:27]} 28. Bxd6 {[%emt 0:06:23]} Qxd6 {[%emt 0:00:09]} 29. Nc4 {[%emt 0:02:54]} Qb4 {[%emt 0:01:19]} 30. Qd3 {[%emt 0:04:44]} (30. Qxh5 $2 Qxb3+ 31. Ke2 Qxc4+ $19) (30. Nxe3 $14 fxe3 31. Qxe3) 30... Bd4 $11 {[%emt 0:01:51]} 31. Re2 {[%emt 0:00:19]} g4 {[%emt 0:00:53]} 32. d6 {[%emt 0:01:05]} Rf7 {[%emt 0:06:32]} 33. hxg4 {[%emt 0:00:18]} hxg4 {[%emt 0:00:21]} 34. Rc2 $2 {[%emt 0:00:24]} (34. d7 $11 Rxd7 35. Nxe5 Bxe5 (35... Rg7 36. Nc4 $11) 36. Qxd7 Qxb3+ 37. Rc2 Qb1+ 38. Kd2 Qb4+ 39. Ke2 Qxe4+ 40. Kd1) 34... Rh7 $2 {[%emt 0:04:39]} (34... f3 $17 {...f2 is the strong threat.} 35. d7 Rxd7) 35. Nd2 {[%emt 0:01:03]} Qxd6 {[%emt 0:00:23]} (35... Rh1+ 36. Ke2 Kf7 (36... Qxd6 37. Qc4+ Kg7 38. Qc8 $11) 37. Rc8 Qxd6 38. Qc4+ Kf6 39. Qg8 f3+ 40. gxf3 Rh2+ 41. Kf1 Rh1+ (41... Rxd2 $2 42. Rf8+ $18) 42. Ke2 Rh2+ 43. Kf1) 36. Rc8+ {[%emt 0:00:10]} (36. Qc4+ $1 $11 {remains equal.} Kg7 37. Qc8) 36... Kg7 {[%emt 0:00:05]} 37. Nc4 $2 {[%emt 0:01:09][%mdl 8192]} (37. Qc4 $17) 37... Qb4 {[%emt 0:02:06] ( -> ...Rh1+)} 38. Nxe5 {[%emt 0:00:42]} (38. Rc7+ {is the only way for White.} Kg6 39. Rxh7 Kxh7 40. Nd2) 38... Rh1+ $19 {[%emt 0:01:34]} (38... Bxe5 39. Qd7+ Kh6 40. Qe6+ Kh5 41. Qxe5+ Kh4 42. Qxf4 Qxb3+ 43. Ke2 Qa2+ 44. Ke1 Qxg2 45. Rc3 Qg1+ 46. Ke2 Qg2+ 47. Ke1 Qg1+ 48. Ke2 Qg2+ 49. Ke1 $11) 39. Kc2 {[%emt 0:00:05] [#] Rc7+ is the strong threat.} Rg1 $2 {[%emt 0:01:05]} (39... Bxe5 $2 40. Qd7+ Kh6 41. Qe6+ Kh5 (41... Kh7 $2 42. Qxe5 $18) 42. Qxe5+ Kh4 43. Qxf4 $18) ({Black should try} 39... Qe1 $1 $19 {[%csl Gh1][%cal Re1c1]} 40. Rc7+ (40. Qxd4 Qb1+ 41. Kd2 Rd1+ 42. Ke2 Rxd4 43. Rc7+ Kf8 44. Nd7+ Kf7 45. Nc5+ Kg6) 40... Kh6 (40... Kf6 41. Rf7+ Kg5 42. Rg7+ Kh6 43. Nxg4+ Kxg7 44. Qxd4+ Kg6 45. Ne5+ Kh5 46. Nd3 $17) 41. Nxg4+ (41. Qxd4 $2 Qb1+ 42. Kd2 Rd1+ 43. Ke2 Rxd4 $19) (41. Nf7+ $2 Kh5 $19) 41... Kg5 42. Qb5+ Kh4 (42... Kxg4 43. Qf5+ Kg3 44. Qg5+ Kh2 45. Qxf4+ Kxg2 46. Qg5+ Qg3 47. Qxg3+ Kxg3 48. Rxb7 $17) 43. Rh7+ Kxg4 44. Qf5+ Kg3 45. Qg5+ Kf2 46. Qxf4+ Kg1 47. Rxh1+ Kxh1) 40. Qe2 $40 {[%emt 0:00:41][%mdl 128] White is up to no good. The board is on fire.} f3 $1 {[%emt 0:01:02]} 41. Nxf3 {[%emt 0:32:06][%cal Be5f3,Bf3d2,Bd2c4][%mdl 32]} Ra1 {[%emt 0:07:37] ( -> ...Ra2+)} 42. Nd2 {[%emt 0:00:00]} Ra2+ $2 {[%emt 0:06:07][%mdl 8192]} (42... Kh6 $14) 43. Kd3 $18 {[%emt 0:00:00]} Bf6 {[%emt 0:01:23][%csl Gf6][%cal Rb4d4]} 44. Qxg4+ {[%emt 0:00:00] White mates.} Kf7 {[%emt 0:00:03]} 45. Qg8+ {[%emt 0:00:00]} Ke7 {[%emt 0:00:04]} 46. Qe8+ {[%emt 0:00:00]} Kd6 {[%emt 0:00:10]} 47. Nc4+ {[%emt 0:00:00] Weighted Error Value: White=0.31/Black=0.62  Loses game:     	White=1     	Black=1      Missed win:     	---       	Black=1      Mistake:       	White=5     	Black=1      Inaccurate:     	White=1     	Black=7      OK:         	White=16    	Black=11     Best:        	White=4     	Black=2      Strong:       	---       	Black=1} (47. e5+ $142 Bxe5 48. Nc4+ Qxc4+ 49. bxc4 (49. Rxc4 Ra1 $18) 49... Rd2+ 50. Kxd2 Bf6 51. c5+ Kd5 52. Kd3 Be7 53. Qxe7 b6 54. Qe4#) 1-0

[Event "FIDE WSTC Open 50 2025"]
[Site "Prague"]
[Date "2025.02.23"]
[Round "6.18"]
[White "Van Haastert, Edwin"]
[Black "Burnett, Andrew"]
[Result "1-0"]
[Annotator "TA"]
[ECO "B76"]
[WhiteElo "2408"]
[BlackElo "2147"]
[PlyCount "119"]
[EventDate "2025.02.17"]
[EventType "team-tourn"]
[EventCountry "CZE"]
[SourceTitle "playchess.com"]
[Source "ChessBase"]
[SourceQuality "1"]
[TimeControl "40/5400+30:1800+30"]

{[%evp 25,119,55,57,54,43,36,39,48,50,30,44,51,50,37,46,51,55,41,70,30,78,80,89,59,115,112,149,145,264,250,251,171,178,173,183,170,195,178,191,188,173,119,121,69,63,57,156,180,171,171,163,195,326,281,330,353,304,272,439,375,726,658,791,334,332,292,291,292,286,285,285,285,783,783,783,783,783,720,710,464,5089,4678,3701,4155,5097,4602,29963,29966,9908,29944,29974,29965,29975,29976,29978,29979]} 1. e4 {[%emt 0:00:03]} c5 {[%emt 0:00:06]} 2. Nf3 {[%emt 0:00:05]} d6 {[%emt 0:00:12]} 3. d4 {[%emt 0:00:06]} cxd4 {[%emt 0:00:24]} 4. Nxd4 {[%emt 0:00:05]} Nf6 {[%emt 0:00:05]} 5. Nc3 {[%emt 0:00:06]} g6 {[%emt 0:00:46]} 6. Be3 {[%emt 0:00:08]} Bg7 {[%emt 0:00:07]} 7. f3 {[%emt 0:00:05]} Nc6 {[%emt 0:00:07]} 8. Qd2 {[%emt 0:00:05]} O-O {[%emt 0:00:09]} 9. O-O-O {[%emt 0:00:04]} d5 {[%emt 0:00:14]} 10. exd5 {[%emt 0:00:05]} Nxd5 {[%emt 0:00:07]} 11. Nxc6 {[%emt 0:00:04]} bxc6 {[%emt 0:00:11]} 12. Bd4 {[%emt 0:00:05]} e5 {[%emt 0:00:10]} 13. Bc5 {[%emt 0:00:04]} Re8 {[%emt 0:00:11]} 14. Ne4 {[%emt 0:00:06] B76: Sicilian Dragon: Yugoslav Attack, 9 g4 and 9 0-0-0.} Qc7 {[%emt 0:00:07] The main line 14...Qc7 scores better than 14...Be6.} 15. Bc4 {[%emt 0:00:12][%cal Oh2h4]} Be6 {[%emt 0:13:02]} 16. g4 {[%emt 0:01:00] White is slightly better.} (16. h4 {is interesting.} Red8 17. h5 Nf6 18. Bd6) 16... h6 {[%emt 0:06:52]} 17. Rhg1 $146 {[%emt 0:07:10]} (17. h4 Rad8 18. Qf2 Rd7 19. g5 h5 20. Rd2 Red8 21. Rhd1 Bf5 22. Bb3 Nb6 23. Bd6 {1-0 Shirov,A (2662)-Klimenko,S (2429) Levitov Christmas Online Q2 blitz 2020}) 17... Red8 {[%emt 0:08:51]} 18. Qf2 {[%emt 0:01:11]} Nf4 {[%emt 0:03:34]} 19. Rxd8+ {[%emt 0:02:24]} Qxd8 {[%emt 0:00:47]} 20. Bxe6 {[%emt 0:00:56]} Nxe6 {[%emt 0:00:22]} 21. Be3 {[%emt 0:05:07]} (21. Bxa7 $2 Qa5 22. Be3 Qxa2 $19) 21... Qa5 {[%emt 0:02:14]} 22. a3 {[%emt 0:00:53] White is more active.} Nd4 {[%emt 0:02:49]} (22... Qb5 $11) 23. c3 $16 {[%emt 0:08:19][%cal Bc2c3,Bc3c4][%mdl 32]} Nb3+ {[%emt 0:07:45]} 24. Kb1 {[%emt 0:00:19]} Qa4 {[%emt 0:06:06]} (24... Qb5 $14) 25. Qc2 {[%emt 0:06:46]} Rb8 {[%emt 0:01:28]} 26. Rd1 {[%emt 0:02:00][%cal Bg1d1,Bd1d5,Bd5e5][%mdl 32]} a5 {[%emt 0:07:21]} (26... Qa6 $16 27. Rd7 Bf8) 27. c4 $18 {[%emt 0:11:16]} c5 {[%emt 0:12:03]} 28. Nxc5 {[%emt 0:00:54]} Nxc5 {[%emt 0:00:40]} 29. Bxc5 {[%emt 0:00:04] White has a strong bishop and is better} Qc6 {[%emt 0:01:35]} 30. Bd6 {[%emt 0:00:18]} Rc8 {[%emt 0:00:26]} 31. Rd5 {[%emt 0:01:25][%cal Od5c5]} Qxc4 {[%emt 0:12:44]} 32. Qxc4 {[%emt 0:00:06] Successful Defense White} Rxc4 {[%emt 0:00:06]} 33. Bxe5 {[%emt 0:02:32][%mdl 4096] Endgame KRB-KRB. White is a pawn up.} ({White should play} 33. Rxa5 $18 e4 34. fxe4 Rxe4 35. Ra8+ Kh7 36. Ra7 Rxg4 37. b4 (37. Rxf7 Kg8 $16)) 33... a4 $16 {[%emt 0:00:31]} 34. h4 {[%emt 0:07:10]} (34. Bxg7 $16 Kxg7 35. Rb5) 34... Bxe5 $14 {[%emt 0:04:20]} 35. Rxe5 {[%emt 0:00:04] KR-KR. White is a pawn up.} Rf4 {[%emt 0:00:08] Black is on the road to losing.} ({Black should try} 35... f5 $1 $14) 36. Re4 $1 $16 {[%emt 0:01:57]} Rxf3 {[%emt 0:01:34]} 37. Rxa4 {[%emt 0:00:07]} f5 {[%emt 0:01:36]} 38. gxf5 {[%emt 0:00:26]} gxf5 {[%emt 0:00:07]} (38... g5 {was necessary.} 39. Rc4 Rxf5) 39. Rb4 {[%emt 0:02:37]} Kf7 {[%emt 0:04:05]} 40. a4 {[%emt 0:03:30]} Rg3 {[%emt 0:01:24]} 41. a5 {[%emt 0:31:21]} Rg4 $2 {[%emt 0:33:44]} (41... Rg1+ 42. Ka2 Ke6) 42. Rb7+ $18 {[%emt 0:02:21]} Kg6 $2 {[%emt 0:00:00]} (42... Ke6 43. a6 Rg1+ 44. Ka2 Rg8) 43. Rb6+ {[%emt 0:00:00]} Kg7 {[%emt 0:00:00]} 44. h5 {[%emt 0:00:00]} (44. a6 $142) 44... f4 {[%emt 0:00:00][%cal Bf5f4,Bf4f3][%mdl 32]} 45. Kc2 {[%emt 0:00:00][%cal Ob6g6]} f3 {[%emt 0:00:00]} 46. Kd2 $1 {[%emt 0:00:00][%cal Ob6g6]} Re4 {[%emt 0:00:00]} 47. Rg6+ $1 {[%emt 0:00:00]} Kf7 {[%emt 0:00:00] [#] and ...f2 would now be decisive} 48. Rg3 $1 {[%emt 0:00:00]} (48. Rxh6 f2 49. Rh7+ Kg8 $19) 48... Re2+ $2 {[%emt 0:00:00]} (48... f2 49. Rf3+ Ke6) 49. Kd3 {[%emt 0:00:00]} Rxb2 {[%emt 0:00:00]} 50. Rxf3+ {[%emt 0:00:00]} Ke6 {[%emt 0:00:00] [#]} 51. Kc4 $1 {[%emt 0:00:00]} Ra2 {[%emt 0:00:00]} 52. Kb4 {[%emt 0:00:00] Ra3 would now be deadly.} Kd5 {[%emt 0:00:00]} (52... Kd7 $142 53. Rf6 Kc7 54. Rxh6 Kb7) 53. Rf6 {[%emt 0:00:00]} Rb2+ {[%emt 0:00:00]} 54. Kc3 {[%emt 0:00:00]} Rh2 {[%emt 0:02:00]} 55. Rxh6 {[%emt 0:00:00]} Kc5 {[%emt 0:00:23]} 56. a6 {[%emt 0:00:00][%cal Ba5a6,Ba6a7][%mdl 32]} Rh3+ {[%emt 0:00:11]} 57. Kd2 {[%emt 0:00:00]} Kd4 {[%emt 0:00:32] White mates.} 58. a7 {[%emt 0:00:00]} Ra3 {[%emt 0:01:02]} 59. Rh7 {[%emt 0:00:00]} Ra2+ {[%emt 0:01:08]} 60. Kc1 {[%emt 0:00:00] Weighted Error Value: White=0.23 (precise) /Black=0.71  Mistake:       	White=2     	Black=8      Inaccurate:     	White=2     	Black=2      OK:         	White=15    	Black=6      Best:        	White=3     	Black=6      Strong:       	White=3     	---} 1-0

[Event "FIDE WSTC Open 50 2025"]
[Site "Prague"]
[Date "2025.02.23"]
[Round "6.19"]
[White "Mitchell, Martin"]
[Black "Roobol, Martin"]
[Result "1/2-1/2"]
[Annotator "RC"]
[ECO "E73"]
[WhiteElo "2143"]
[BlackElo "2242"]
[PlyCount "161"]
[EventDate "2025.02.17"]
[EventType "team-tourn"]
[EventCountry "CZE"]
[SourceTitle "playchess.com"]
[Source "ChessBase"]
[SourceQuality "1"]
[TimeControl "40/5400+30:1800+30"]

1. d4 {[%emt 0:00:04]} Nf6 {[%emt 0:00:06]} 2. c4 {[%emt 0:00:09]} g6 {[%emt 0:00:06]} 3. Nc3 {[%emt 0:00:05]} Bg7 {[%emt 0:00:05]} 4. e4 {[%emt 0:00:07]} d6 {[%emt 0:00:05]} 5. Be2 {[%emt 0:00:13]} O-O {[%emt 0:00:41]} 6. Be3 {[%emt 0:00:10]} e5 {[%emt 0:00:50]} 7. d5 {[%emt 0:00:13]} Na6 {[%emt 0:00:36]} 8. h4 {[%emt 0:01:35]} Nc5 {[%emt 0:01:38]} 9. Qc2 {[%emt 0:00:15]} c6 {[%emt 0:01:47]} 10. h5 {[%emt 0:02:33]} cxd5 {[%emt 0:01:28]} 11. cxd5 {[%emt 0:00:35]} Qa5 {[%emt 0:02:51]} 12. h6 {[%emt 0:09:00]} Bh8 {[%emt 0:00:34]} 13. f3 {[%emt 0:00:36]} Nh5 {[%emt 0:02:44]} 14. Rb1 {[%emt 0:01:56]} Ng3 {[%emt 0:00:45]} 15. b4 {[%emt 0:00:50]} Qd8 {[%emt 0:00:18]} 16. bxc5 {[%emt 0:02:21]} Nxh1 {[%emt 0:00:46]} 17. c6 {[%emt 0:01:30]} b6 {[%emt 0:17:19]} 18. a4 {[%emt 0:12:53]} f5 {[%emt 0:05:17]} 19. a5 {[%emt 0:18:47]} bxa5 {[%emt 0:15:20]} 20. Nb5 {[%emt 0:07:03]} fxe4 {[%emt 0:31:22]} 21. fxe4 {[%emt 0:02:55]} Ng3 {[%emt 0:03:30]} 22. Nxd6 {[%emt 0:17:22]} Qxd6 {[%emt 0:01:40]} 23. Bc5 {[%emt 0:00:09]} Qf6 {[%emt 0:01:07]} 24. Bxf8 {[%emt 0:00:39]} Nxe2 {[%emt 0:02:24]} 25. Nxe2 {[%emt 0:02:22]} Qxf8 {[%emt 0:00:05]} 26. Qc4 {[%emt 0:08:16]} Qd6 {[%emt 0:02:36]} 27. Nc3 {[%emt 0:03:52]} a6 {[%emt 0:00:13]} 28. Na4 {[%emt 0:01:59]} Bf6 {[%emt 0:00:53]} 29. c7 {[%emt 0:02:13]} Bh4+ {[%emt 0:02:04]} 30. Kd2 {[%emt 0:00:19]} Bf2 {[%emt 0:01:46]} 31. Qc6 {[%emt 0:01:41]} Qxc6 {[%emt 0:00:57]} 32. dxc6 {[%emt 0:00:05]} Ra7 {[%emt 0:00:21]} 33. Nc3 {[%emt 0:00:29]} Rxc7 {[%emt 0:02:56]} 34. Nd5 {[%emt 0:00:13]} Rf7 {[%emt 0:01:05]} 35. Rb8 {[%emt 0:00:31]} Rf8 {[%emt 0:00:04]} 36. Ne7+ {[%emt 0:03:04]} Kf7 {[%emt 0:00:07]} 37. Rxc8 {[%emt 0:00:53]} Rxc8 {[%emt 0:00:16]} 38. Nxc8 {[%emt 0:00:04]} Ke6 {[%emt 0:00:55]} 39. c7 {[%emt 0:00:24]} Kd7 {[%emt 0:00:11]} 40. Ne7 {[%emt 0:00:08]} Kxc7 {[%emt 0:00:08]} 41. Nxg6 {[%emt 0:30:13]} Bg3 {[%emt 0:31:52]} 42. Nf8 {[%emt 0:00:00]} Bf4+ {[%emt 0:00:00]} 43. Kd3 {[%emt 0:00:00]} Bxh6 {[%emt 0:00:00]} 44. Nxh7 {[%emt 0:00:00]} Kd6 {[%emt 0:00:00]} 45. Nf6 {[%emt 0:00:00]} Bg5 {[%emt 0:00:00]} 46. Nd5 {[%emt 0:00:00]} Bd8 {[%emt 0:00:00]} 47. Kc4 {[%emt 0:00:00]} Ke6 {[%emt 0:00:00]} 48. Nc3 {[%emt 0:00:00]} Kf6 {[%emt 0:00:00]} 49. Ne2 {[%emt 0:00:00]} Bb6 {[%emt 0:00:00]} 50. Nc3 {[%emt 0:00:00]} Bd4 {[%emt 0:00:00]} 51. Ne2 {[%emt 0:00:00]} Bf2 {[%emt 0:00:00]} 52. Nc3 {[%emt 0:00:00]} Be1 {[%emt 0:00:00]} 53. Na4 {[%emt 0:00:00]} Bf2 {[%emt 0:00:00]} 54. Nc3 {[%emt 0:00:00]} Ke6 {[%emt 0:00:00]} 55. Nd5 {[%emt 0:00:00]} Kd6 {[%emt 0:00:00]} 56. Nc3 {[%emt 0:00:00]} Be1 {[%emt 0:00:00]} 57. Na4 {[%emt 0:00:08]} Bb4 {[%emt 0:00:00]} 58. Nb2 {[%emt 0:00:17]} Bc5 {[%emt 0:00:00]} 59. Kb3 {[%emt 0:02:12]} Bd4 {[%emt 0:03:18]} 60. Nc4+ {[%emt 0:00:22]} Kc5 {[%emt 0:00:06]} 61. Nxa5 {[%emt 0:00:18]} Bf2 {[%emt 0:01:27]} 62. Nb7+ {[%emt 0:04:05]} Kd4 {[%emt 0:00:11]} 63. Nd6 {[%emt 0:00:29]} Kd3 {[%emt 0:00:14]} 64. Kb4 {[%emt 0:01:34]} Be1+ {[%emt 0:01:48]} 65. Ka4 {[%emt 0:01:06]} Ke3 {[%emt 0:01:10]} 66. Kb3 {[%emt 0:00:40]} a5 {[%emt 0:00:36]} 67. Ka4 {[%emt 0:00:50]} Bb4 {[%emt 0:00:15]} 68. Nf7 {[%emt 0:02:02]} Kxe4 {[%emt 0:00:30]} 69. Kb3 {[%emt 0:00:06]} Kf5 {[%emt 0:00:39]} 70. g4+ {[%emt 0:00:56]} Kf6 {[%emt 0:00:19]} 71. Nd8 {[%emt 0:00:49]} e4 {[%emt 0:02:30]} 72. Nc6 {[%emt 0:00:08]} e3 {[%emt 0:00:41]} 73. Nd4 {[%emt 0:00:05]} Kg5 {[%emt 0:00:22]} 74. Kc2 {[%emt 0:00:46]} a4 {[%emt 0:01:04]} 75. Kd3 {[%emt 0:00:23]} Bd2 {[%emt 0:00:19]} 76. Nf3+ {[%emt 0:00:18]} Kxg4 {[%emt 0:01:14]} 77. Nxd2 {[%emt 0:00:13]} Kf4 {[%emt 0:00:03]} 78. Nf1 {[%emt 0:01:11]} e2 {[%emt 0:00:24]} 79. Kxe2 {[%emt 0:00:08]} a3 {[%emt 0:00:03]} 80. Ne3 {[%emt 0:00:29]} a2 {[%emt 0:00:05]} 81. Nc2 {[%emt 0:00:09]} 1/2-1/2